[Event "Titled Tuesday Blitz June 21 Late 2022"]
[White "Prieto Aranguren, Alain"]
[Black "Altman, Joshua"]
[WhiteFideId "2268906"]
[BlackFideId "426210"]
[WhiteElo "2224"]
[BlackElo "1945"]
[Result "1-0"]
[Round "06"]
[TimeControl "180+1"]
[Date "2022.06.22"]
[WhiteClock "0:00:14"]
[BlackClock "0:00:30"]

1. d4 {[%clk 0:02:58]}  Nf6 {[%clk 0:02:59]} 2. c4 {[%clk 0:02:55]}  e6 {[%clk 0:02:59]} 3. Nf3 {[%clk 0:02:54]}  b6 {[%clk 0:02:58]} 4. g3 {[%clk 0:02:54]}  Bb7 {[%clk 0:02:58]} 5. Bg2 {[%clk 0:02:55]}  Bb4+ {[%clk 0:02:58]} 6. Bd2 {[%clk 0:02:51]}  Bxd2+ {[%clk 0:02:59]} 7. Nbxd2 {[%clk 0:02:51]}  c5 {[%clk 0:02:59]} 8. O-O {[%clk 0:02:42]}  O-O {[%clk 0:02:58]} 9. e3 {[%clk 0:02:37]}  d6 {[%clk 0:02:56]} 10. Rc1 {[%clk 0:02:35]}  Qc7 {[%clk 0:02:48]} 11. Qc2 {[%clk 0:02:34]}  Nbd7 {[%clk 0:02:48]} 12. Rfd1 {[%clk 0:02:30]}  Rfd8 {[%clk 0:02:48]} 13. dxc5 {[%clk 0:02:20]}  Nxc5 {[%clk 0:02:37]} 14. Nb3 {[%clk 0:02:20]}  Be4 {[%clk 0:02:34]} 15. Qc3 {[%clk 0:02:14]}  Qb7 {[%clk 0:02:28]} 16. Nxc5 {[%clk 0:02:12]}  bxc5 {[%clk 0:02:26]} 17. Ne1 {[%clk 0:02:10]}  Bxg2 {[%clk 0:02:26]} 18. Nxg2 {[%clk 0:02:10]}  Qf3 {[%clk 0:02:19]} 19. Nh4 {[%clk 0:02:06]}  Qh5 {[%clk 0:02:12]} 20. Qd3 {[%clk 0:01:58]}  Ng4 {[%clk 0:02:05]} 21. Qe2 {[%clk 0:01:49]}  g5 {[%clk 0:01:37]} 22. h3 {[%clk 0:01:47]}  gxh4 {[%clk 0:01:35]} 23. Qxg4+ {[%clk 0:01:32]}  Qxg4 {[%clk 0:01:35]} 24. hxg4 {[%clk 0:01:32]}  hxg3 {[%clk 0:01:36]} 25. f3 {[%clk 0:01:32]}  Kf8 {[%clk 0:01:31]} 26. Kg2 {[%clk 0:01:31]}  Ke7 {[%clk 0:01:32]} 27. Kxg3 {[%clk 0:01:31]}  Rg8 {[%clk 0:01:21]} 28. Rh1 {[%clk 0:01:31]}  Rg7 {[%clk 0:01:22]} 29. f4 {[%clk 0:01:18]}  Rag8 {[%clk 0:01:19]} 30. Rh4 {[%clk 0:01:18]}  h5 {[%clk 0:01:15]} 31. g5 {[%clk 0:01:13]}  f6 {[%clk 0:01:15]} 32. Rxh5 {[%clk 0:01:08]}  fxg5 {[%clk 0:01:15]} 33. fxg5 {[%clk 0:01:04]}  Rxg5+ {[%clk 0:01:16]} 34. Rxg5 {[%clk 0:01:04]}  Rxg5+ {[%clk 0:01:17]} 35. Kf3 {[%clk 0:01:04]}  Rf5+ {[%clk 0:01:11]} 36. Ke2 {[%clk 0:01:03]}  Rh5 {[%clk 0:01:11]} 37. Kd3 {[%clk 0:00:59]}  Rh2 {[%clk 0:01:11]} 38. Rc2 {[%clk 0:00:58]}  Rxc2 {[%clk 0:01:09]} 39. Kxc2 {[%clk 0:00:58]}  Kf6 {[%clk 0:01:09]} 40. Kd3 {[%clk 0:00:53]}  Ke5 {[%clk 0:01:08]} 41. b3 {[%clk 0:00:49]}  a6 {[%clk 0:01:01]} 42. a3 {[%clk 0:00:38]}  a5 {[%clk 0:01:01]} 43. Kd2 {[%clk 0:00:23]}  Ke4 {[%clk 0:00:58]} 44. Ke2 {[%clk 0:00:23]}  Kf5 {[%clk 0:00:41]} 45. Kf3 {[%clk 0:00:20]}  d5 {[%clk 0:00:40]} 46. Ke2 {[%clk 0:00:13]}  Ke4 {[%clk 0:00:23]} 47. cxd5 {[%clk 0:00:12]}  exd5 {[%clk 0:00:23]} 48. Kd2 {[%clk 0:00:12]}  Kf3 {[%clk 0:00:20]} 49. Kd3 {[%clk 0:00:13]}  Kf2 {[%clk 0:00:21]} 50. e4 {[%clk 0:00:12]}  dxe4+ {[%clk 0:00:20]} 51. Kxe4 {[%clk 0:00:12]}  Ke2 {[%clk 0:00:20]} 52. Kd5 {[%clk 0:00:12]}  Kd3 {[%clk 0:00:20]} 53. Kxc5 {[%clk 0:00:13]}  Kc3 {[%clk 0:00:20]} 54. b4 {[%clk 0:00:13]}  axb4 {[%clk 0:00:21]} 55. axb4 {[%clk 0:00:13]}  Kd3 {[%clk 0:00:22]} 56. b5 {[%clk 0:00:13]}  Ke4 {[%clk 0:00:23]} 57. b6 {[%clk 0:00:13]}  Ke5 {[%clk 0:00:24]} 58. b7 {[%clk 0:00:14]}  Ke6 {[%clk 0:00:25]} 59. b8=Q {[%clk 0:00:14]}  Kd7 {[%clk 0:00:26]} 60. Qb6 {[%clk 0:00:14]}  Ke7 {[%clk 0:00:27]} 61. Kd5 {[%clk 0:00:14]}  Kf7 {[%clk 0:00:27]} 62. Ke5 {[%clk 0:00:14]}  Kg7 {[%clk 0:00:28]} 63. Kf5 {[%clk 0:00:14]}  Kh7 {[%clk 0:00:28]} 64. Kg5 {[%clk 0:00:14]}  Kh8 {[%clk 0:00:29]} 65. Qb7 {[%clk 0:00:14]}  Kg8 {[%clk 0:00:29]} 66. Kf6 {[%clk 0:00:15]}  Kf8 {[%clk 0:00:30]} 67. Qf7# {[%clk 0:00:14]} 1-0


[Site "https://www.chess.com"]

[Event "Titled Tuesday Blitz June 21 Late 2022"]
[White "Reprintsev, Alexander"]
[Black "Rama, Tejas"]
[WhiteFideId "14100541"]
[BlackFideId "30907381"]
[WhiteElo "2108"]
[BlackElo "1430"]
[Result "1/2-1/2"]
[Round "06"]
[TimeControl "180+1"]
[Date "2022.06.22"]
[WhiteClock "0:00:03"]
[BlackClock "0:00:04"]

1. e4 {[%clk 0:03:00]}  e5 {[%clk 0:02:56]} 2. f4 {[%clk 0:02:59]}  d5 {[%clk 0:02:55]} 3. exd5 {[%clk 0:02:58]}  exf4 {[%clk 0:02:51]} 4. Nf3 {[%clk 0:02:57]}  Nf6 {[%clk 0:02:38]} 5. Bb5+ {[%clk 0:02:53]}  c6 {[%clk 0:02:34]} 6. dxc6 {[%clk 0:02:44]}  Nxc6 {[%clk 0:02:35]} 7. Nc3 {[%clk 0:02:42]}  Be6 {[%clk 0:02:27]} 8. d4 {[%clk 0:02:08]}  Bd6 {[%clk 0:02:08]} 9. Ne5 {[%clk 0:02:07]}  O-O {[%clk 0:01:52]} 10. Bxc6 {[%clk 0:01:59]}  bxc6 {[%clk 0:01:34]} 11. Bxf4 {[%clk 0:01:58]}  Qc7 {[%clk 0:01:16]} 12. O-O {[%clk 0:01:56]}  c5 {[%clk 0:01:10]} 13. Nb5 {[%clk 0:01:50]}  Qb6 {[%clk 0:01:06]} 14. Nxd6 {[%clk 0:01:50]}  Qxd6 {[%clk 0:01:07]} 15. Ng6 {[%clk 0:01:48]}  Qxd4+ {[%clk 0:00:40]} 16. Qxd4 {[%clk 0:01:45]}  cxd4 {[%clk 0:00:41]} 17. Nxf8 {[%clk 0:01:44]}  Kxf8 {[%clk 0:00:42]} 18. Be5 {[%clk 0:01:44]}  Ne4 {[%clk 0:00:30]} 19. Bxd4 {[%clk 0:01:40]}  Rc8 {[%clk 0:00:26]} 20. c3 {[%clk 0:01:39]}  a6 {[%clk 0:00:25]} 21. b3 {[%clk 0:01:38]}  Nxc3 {[%clk 0:00:23]} 22. Bxc3 {[%clk 0:01:32]}  Rxc3 {[%clk 0:00:24]} 23. Rac1 {[%clk 0:01:31]}  Rd3 {[%clk 0:00:13]} 24. Rfd1 {[%clk 0:01:30]}  Rxd1+ {[%clk 0:00:12]} 25. Rxd1 {[%clk 0:01:30]}  Ke7 {[%clk 0:00:12]} 26. Kf2 {[%clk 0:01:28]}  f6 {[%clk 0:00:11]} 27. Ke3 {[%clk 0:01:28]}  Bf5 {[%clk 0:00:09]} 28. Kd4 {[%clk 0:01:28]}  Kd6 {[%clk 0:00:09]} 29. b4 {[%clk 0:01:25]}  Be6 {[%clk 0:00:08]} 30. a4 {[%clk 0:01:24]}  Bb3 {[%clk 0:00:08]} 31. Ra1 {[%clk 0:01:22]}  Kc6 {[%clk 0:00:08]} 32. Ra3 {[%clk 0:01:14]}  Bd1 {[%clk 0:00:06]} 33. Rc3+ {[%clk 0:01:09]}  Kb6 {[%clk 0:00:06]} 34. a5+ {[%clk 0:01:07]}  Kb5 {[%clk 0:00:06]} 35. Rc7 {[%clk 0:01:04]}  Kxb4 {[%clk 0:00:04]} 36. Rxg7 {[%clk 0:01:04]}  Bc2 {[%clk 0:00:04]} 37. Rf7 {[%clk 0:00:59]}  Kxa5 {[%clk 0:00:04]} 38. Rxf6 {[%clk 0:00:59]}  Kb5 {[%clk 0:00:04]} 39. Rf2 {[%clk 0:00:53]}  Bb3 {[%clk 0:00:03]} 40. Rb2 {[%clk 0:00:52]}  Kb4 {[%clk 0:00:04]} 41. g4 {[%clk 0:00:47]}  a5 {[%clk 0:00:04]} 42. h4 {[%clk 0:00:47]}  a4 {[%clk 0:00:05]} 43. g5 {[%clk 0:00:46]}  a3 {[%clk 0:00:05]} 44. Rb1 {[%clk 0:00:46]}  a2 {[%clk 0:00:05]} 45. Ra1 {[%clk 0:00:46]}  Ka3 {[%clk 0:00:05]} 46. Kc3 {[%clk 0:00:45]}  Bf7 {[%clk 0:00:05]} 47. Rh1 {[%clk 0:00:37]}  Be6 {[%clk 0:00:02]} 48. h5 {[%clk 0:00:35]}  Bf5 {[%clk 0:00:02]} 49. Ra1 {[%clk 0:00:13]}  Bb1 {[%clk 0:00:03]} 50. g6 {[%clk 0:00:11]}  hxg6 {[%clk 0:00:03]} 51. hxg6 {[%clk 0:00:04]}  Bxg6 {[%clk 0:00:04]} 52. Rxa2+ {[%clk 0:00:03]}  Kxa2 {[%clk 0:00:04]} 1/2-1/2


[Site "https://www.chess.com"]

[Event "Titled Tuesday Blitz June 21 Late 2022"]
[White "Richter, Nils"]
[Black "Mikhailov, Viacheslav"]
[WhiteFideId "12990809"]
[BlackFideId "4187369"]
[WhiteElo "2311"]
[BlackElo "2381"]
[Result "0-1"]
[Round "06"]
[TimeControl "180+1"]
[Date "2022.06.21"]
[WhiteClock "0:00:05"]
[BlackClock "0:00:02"]

1. e4 {[%clk 0:03:00]}  d6 {[%clk 0:02:33]} 2. d4 {[%clk 0:02:59]}  Nf6 {[%clk 0:02:33]} 3. Nc3 {[%clk 0:02:59]}  g6 {[%clk 0:02:34]} 4. f4 {[%clk 0:02:53]}  Bg7 {[%clk 0:02:33]} 5. Nf3 {[%clk 0:02:51]}  O-O {[%clk 0:02:33]} 6. Bd3 {[%clk 0:02:48]}  Bg4 {[%clk 0:02:34]} 7. O-O {[%clk 0:02:39]}  Nc6 {[%clk 0:02:33]} 8. Be3 {[%clk 0:02:32]}  e5 {[%clk 0:02:33]} 9. fxe5 {[%clk 0:02:14]}  dxe5 {[%clk 0:02:30]} 10. d5 {[%clk 0:02:14]}  Nd4 {[%clk 0:02:30]} 11. Ne2 {[%clk 0:02:06]}  Bxf3 {[%clk 0:02:24]} 12. gxf3 {[%clk 0:02:05]}  Nxe2+ {[%clk 0:02:17]} 13. Bxe2 {[%clk 0:02:00]}  Nh5 {[%clk 0:02:15]} 14. Qd2 {[%clk 0:01:55]}  Qh4 {[%clk 0:01:56]} 15. Rf2 {[%clk 0:01:44]}  c6 {[%clk 0:01:50]} 16. Bg5 {[%clk 0:01:34]}  Qh3 {[%clk 0:01:44]} 17. Bf1 {[%clk 0:01:28]}  Qd7 {[%clk 0:01:41]} 18. Bc4 {[%clk 0:01:18]}  Kh8 {[%clk 0:01:31]} 19. dxc6 {[%clk 0:01:16]}  Qxc6 {[%clk 0:01:31]} 20. Bd5 {[%clk 0:01:16]}  Qc7 {[%clk 0:01:30]} 21. Kh1 {[%clk 0:01:08]}  f5 {[%clk 0:01:25]} 22. Qb4 {[%clk 0:01:01]}  fxe4 {[%clk 0:01:00]} 23. Bxe4 {[%clk 0:00:55]}  Nf4 {[%clk 0:00:36]} 24. Rd2 {[%clk 0:00:48]}  Ne6 {[%clk 0:00:16]} 25. Be7 {[%clk 0:00:39]}  Rfe8 {[%clk 0:00:07]} 26. Bd6 {[%clk 0:00:39]}  Qf7 {[%clk 0:00:04]} 27. Qxb7 {[%clk 0:00:38]}  Qf4 {[%clk 0:00:04]} 28. Rad1 {[%clk 0:00:32]}  Rad8 {[%clk 0:00:04]} 29. Qxa7 {[%clk 0:00:27]}  Ng5 {[%clk 0:00:04]} 30. Qb7 {[%clk 0:00:13]}  h5 {[%clk 0:00:01]} 31. Be7 {[%clk 0:00:09]}  Rxd2 {[%clk 0:00:01]} 32. Rxd2 {[%clk 0:00:07]}  Qxd2 {[%clk 0:00:02]} 33. Bxg6 {[%clk 0:00:06]}  Qe1+ {[%clk 0:00:02]} 34. Kg2 {[%clk 0:00:06]}  Qd2+ {[%clk 0:00:02]} 35. Kh1 {[%clk 0:00:05]}  Rxe7 {[%clk 0:00:02]} 36. Qxe7 {[%clk 0:00:05]}  Qe1+ {[%clk 0:00:01]} 37. Kg2 {[%clk 0:00:05]}  Qe2+ {[%clk 0:00:02]} 38. Kh1 {[%clk 0:00:05]}  Qf1# {[%clk 0:00:02]} 0-1


[Site "https://www.chess.com"]

[Event "Titled Tuesday Blitz June 21 Late 2022"]
[White "Rustemov, Alexander"]
[Black "Roberson, Peter T"]
[WhiteFideId "4119002"]
[BlackFideId "412384"]
[WhiteElo "2729"]
[BlackElo "2346"]
[Result "1-0"]
[Round "06"]
[TimeControl "180+1"]
[Date "2022.06.21"]
[WhiteClock "0:00:25"]
[BlackClock "0:00:02"]

1. d4 {[%clk 0:03:00]}  Nf6 {[%clk 0:02:58]} 2. c4 {[%clk 0:03:00]}  e6 {[%clk 0:02:58]} 3. Nf3 {[%clk 0:03:01]}  c5 {[%clk 0:02:58]} 4. d5 {[%clk 0:03:01]}  d6 {[%clk 0:02:59]} 5. Nc3 {[%clk 0:03:01]}  exd5 {[%clk 0:02:59]} 6. cxd5 {[%clk 0:03:02]}  g6 {[%clk 0:03:00]} 7. e4 {[%clk 0:03:02]}  a6 {[%clk 0:03:00]} 8. h3 {[%clk 0:02:59]}  b5 {[%clk 0:03:00]} 9. Bd3 {[%clk 0:02:59]}  Bg7 {[%clk 0:03:00]} 10. O-O {[%clk 0:02:59]}  O-O {[%clk 0:03:01]} 11. Re1 {[%clk 0:02:58]}  Nbd7 {[%clk 0:02:57]} 12. Bf4 {[%clk 0:02:57]}  Qb6 {[%clk 0:02:57]} 13. Qd2 {[%clk 0:02:51]}  Re8 {[%clk 0:02:57]} 14. Bh6 {[%clk 0:02:48]}  Bb7 {[%clk 0:02:45]} 15. Qf4 {[%clk 0:02:27]}  Nh5 {[%clk 0:02:40]} 16. Qd2 {[%clk 0:02:09]}  Ne5 {[%clk 0:02:34]} 17. Be2 {[%clk 0:01:41]}  Nxf3+ {[%clk 0:02:12]} 18. Bxf3 {[%clk 0:01:39]}  Nf6 {[%clk 0:02:12]} 19. Bxg7 {[%clk 0:01:33]}  Kxg7 {[%clk 0:02:13]} 20. b3 {[%clk 0:01:33]}  Re7 {[%clk 0:02:08]} 21. Re3 {[%clk 0:01:33]}  Rae8 {[%clk 0:02:07]} 22. Rae1 {[%clk 0:01:34]}  b4 {[%clk 0:01:31]} 23. Nb1 {[%clk 0:01:28]}  a5 {[%clk 0:01:30]} 24. Qb2 {[%clk 0:01:25]}  a4 {[%clk 0:01:09]} 25. Nd2 {[%clk 0:01:25]}  a3 {[%clk 0:01:06]} 26. Qa1 {[%clk 0:01:24]}  Qd8 {[%clk 0:01:01]} 27. Nc4 {[%clk 0:01:15]}  Re5 {[%clk 0:00:12]} 28. Nxe5 {[%clk 0:01:15]}  Rxe5 {[%clk 0:00:12]} 29. g3 {[%clk 0:01:15]}  Kg8 {[%clk 0:00:11]} 30. Bg2 {[%clk 0:01:10]}  Nd7 {[%clk 0:00:11]} 31. f4 {[%clk 0:01:04]}  Re7 {[%clk 0:00:11]} 32. e5 {[%clk 0:01:02]}  Nb6 {[%clk 0:00:11]} 33. exd6 {[%clk 0:00:58]}  Rxe3 {[%clk 0:00:11]} 34. Rxe3 {[%clk 0:00:58]}  c4 {[%clk 0:00:12]} 35. Qe5 {[%clk 0:00:50]}  cxb3 {[%clk 0:00:08]} 36. Rxb3 {[%clk 0:00:49]}  Nc4 {[%clk 0:00:04]} 37. Qe7 {[%clk 0:00:48]}  Qb6+ {[%clk 0:00:03]} 38. Kh2 {[%clk 0:00:48]}  Nxd6 {[%clk 0:00:04]} 39. Qf6 {[%clk 0:00:39]}  h5 {[%clk 0:00:03]} 40. f5 {[%clk 0:00:32]}  gxf5 {[%clk 0:00:02]} 41. Qg5+ {[%clk 0:00:32]}  Kf8 {[%clk 0:00:02]} 42. Qxh5 {[%clk 0:00:29]}  Qd4 {[%clk 0:00:02]} 43. Qh4 {[%clk 0:00:25]}  Qxh4 {[%clk 0:00:02]} 44. gxh4 {[%clk 0:00:25]} 1-0


[Site "https://www.chess.com"]

[Event "Titled Tuesday Blitz June 21 Late 2022"]
[White "Sanchez Alarcon, Juan"]
[Black "Jian, Alex"]
[WhiteFideId "3401332"]
[BlackFideId "30901022"]
[WhiteElo "2164"]
[BlackElo "2111"]
[Result "0-1"]
[Round "06"]
[TimeControl "180+1"]
[Date "2022.06.22"]
[WhiteClock "0:00:21"]
[BlackClock "0:00:04"]

1. e4 {[%clk 0:03:00]}  c5 {[%clk 0:02:59]} 2. c3 {[%clk 0:03:00]}  d5 {[%clk 0:02:58]} 3. exd5 {[%clk 0:02:59]}  Qxd5 {[%clk 0:02:58]} 4. d4 {[%clk 0:02:59]}  Nf6 {[%clk 0:02:59]} 5. Nf3 {[%clk 0:03:00]}  Nc6 {[%clk 0:02:58]} 6. Be2 {[%clk 0:02:57]}  e6 {[%clk 0:02:58]} 7. O-O {[%clk 0:02:57]}  Be7 {[%clk 0:02:56]} 8. c4 {[%clk 0:02:55]}  Qd8 {[%clk 0:02:51]} 9. Be3 {[%clk 0:02:51]}  cxd4 {[%clk 0:02:50]} 10. Nxd4 {[%clk 0:02:51]}  Bd7 {[%clk 0:02:49]} 11. Nc3 {[%clk 0:02:49]}  O-O {[%clk 0:02:48]} 12. Qd2 {[%clk 0:02:43]}  Rc8 {[%clk 0:02:47]} 13. Rfd1 {[%clk 0:02:42]}  a6 {[%clk 0:02:28]} 14. Rac1 {[%clk 0:02:41]}  Qc7 {[%clk 0:02:03]} 15. a3 {[%clk 0:02:37]}  Rfd8 {[%clk 0:02:03]} 16. Qc2 {[%clk 0:02:32]}  Ne5 {[%clk 0:01:53]} 17. Ne4 {[%clk 0:02:11]}  Nfg4 {[%clk 0:01:27]} 18. Bf4 {[%clk 0:02:06]}  Bc6 {[%clk 0:00:45]} 19. Nxc6 {[%clk 0:02:03]}  Qxc6 {[%clk 0:00:41]} 20. Rxd8+ {[%clk 0:01:55]}  Rxd8 {[%clk 0:00:28]} 21. h3 {[%clk 0:01:55]}  Nf6 {[%clk 0:00:27]} 22. Bf3 {[%clk 0:01:45]}  Nxf3+ {[%clk 0:00:25]} 23. gxf3 {[%clk 0:01:45]}  Rc8 {[%clk 0:00:21]} 24. Qb3 {[%clk 0:01:41]}  Nxe4 {[%clk 0:00:17]} 25. fxe4 {[%clk 0:01:40]}  Qxe4 {[%clk 0:00:17]} 26. Bg3 {[%clk 0:01:41]}  h6 {[%clk 0:00:14]} 27. Kh2 {[%clk 0:01:32]}  Bf6 {[%clk 0:00:13]} 28. c5 {[%clk 0:01:31]}  Rd8 {[%clk 0:00:13]} 29. Rc4 {[%clk 0:01:23]}  Qe2 {[%clk 0:00:08]} 30. Rc2 {[%clk 0:01:17]}  Qe4 {[%clk 0:00:07]} 31. Rc4 {[%clk 0:01:15]}  Rd4 {[%clk 0:00:07]} 32. Rxd4 {[%clk 0:01:15]}  Bxd4 {[%clk 0:00:08]} 33. Qb4 {[%clk 0:01:10]}  e5 {[%clk 0:00:07]} 34. b3 {[%clk 0:01:07]}  Qe2 {[%clk 0:00:05]} 35. Qxb7 {[%clk 0:01:00]}  Bxf2 {[%clk 0:00:05]} 36. Qa8+ {[%clk 0:00:52]}  Kh7 {[%clk 0:00:04]} 37. Bxf2 {[%clk 0:00:49]}  Qxf2+ {[%clk 0:00:05]} 38. Qg2 {[%clk 0:00:48]}  Qxc5 {[%clk 0:00:05]} 39. Qe4+ {[%clk 0:00:48]}  g6 {[%clk 0:00:05]} 40. Qf3 {[%clk 0:00:47]}  Qe7 {[%clk 0:00:04]} 41. Qe2 {[%clk 0:00:46]}  Qxa3 {[%clk 0:00:04]} 42. Qxe5 {[%clk 0:00:46]}  Qxb3 {[%clk 0:00:04]} 43. Qf6 {[%clk 0:00:45]}  Qe6 {[%clk 0:00:03]} 44. Qf2 {[%clk 0:00:44]}  a5 {[%clk 0:00:04]} 45. Qc2 {[%clk 0:00:43]}  Qe5+ {[%clk 0:00:03]} 46. Kg2 {[%clk 0:00:42]}  Qd5+ {[%clk 0:00:03]} 47. Kh2 {[%clk 0:00:42]}  Qd6+ {[%clk 0:00:03]} 48. Kg2 {[%clk 0:00:42]}  Qf4 {[%clk 0:00:03]} 49. Qa2 {[%clk 0:00:39]}  a4 {[%clk 0:00:03]} 50. Qa3 {[%clk 0:00:34]}  Kg7 {[%clk 0:00:03]} 51. Qa2 {[%clk 0:00:34]}  Qe4+ {[%clk 0:00:02]} 52. Kh2 {[%clk 0:00:31]}  Qf4+ {[%clk 0:00:03]} 53. Kg2 {[%clk 0:00:30]}  Qb4 {[%clk 0:00:04]} 54. Qa1+ {[%clk 0:00:29]}  Kh7 {[%clk 0:00:04]} 55. Qf6 {[%clk 0:00:28]}  Qb3 {[%clk 0:00:03]} 56. h4 {[%clk 0:00:24]}  a3 {[%clk 0:00:03]} 57. h5 {[%clk 0:00:23]}  Qb2+ {[%clk 0:00:04]} 58. Qxb2 {[%clk 0:00:20]}  axb2 {[%clk 0:00:05]} 59. Kf3 {[%clk 0:00:21]}  b1=Q {[%clk 0:00:04]} 60. hxg6+ {[%clk 0:00:21]}  fxg6 {[%clk 0:00:04]} 0-1


[Site "https://www.chess.com"]

[Event "Titled Tuesday Blitz June 21 Late 2022"]
[White "Barria Santos, Jose Guilherme"]
[Black "Levine, Joseph"]
[WhiteFideId "1939300"]
[BlackFideId "30940346"]
[WhiteElo "2261"]
[BlackElo "1802"]
[Result "1-0"]
[Round "06"]
[TimeControl "180+1"]
[Date "2022.06.22"]
[WhiteClock "0:02:25"]
[BlackClock "0:02:07"]

1. e4 {[%clk 0:03:00]}  e6 {[%clk 0:03:00]} 2. d4 {[%clk 0:03:00]}  d5 {[%clk 0:03:00]} 3. Nc3 {[%clk 0:03:00]}  Nf6 {[%clk 0:02:59]} 4. Bg5 {[%clk 0:02:58]}  Be7 {[%clk 0:02:59]} 5. e5 {[%clk 0:02:58]}  Nfd7 {[%clk 0:03:00]} 6. h4 {[%clk 0:02:58]}  h6 {[%clk 0:02:55]} 7. Bxe7 {[%clk 0:02:56]}  Qxe7 {[%clk 0:02:56]} 8. Qg4 {[%clk 0:02:56]}  O-O {[%clk 0:02:56]} 9. Nf3 {[%clk 0:02:55]}  c5 {[%clk 0:02:56]} 10. dxc5 {[%clk 0:02:56]}  Nc6 {[%clk 0:02:56]} 11. Qg3 {[%clk 0:02:54]}  Qxc5 {[%clk 0:02:52]} 12. O-O-O {[%clk 0:02:53]}  Rb8 {[%clk 0:02:49]} 13. h5 {[%clk 0:02:48]}  b5 {[%clk 0:02:45]} 14. Rh4 {[%clk 0:02:44]}  b4 {[%clk 0:02:44]} 15. Rg4 {[%clk 0:02:35]}  bxc3 {[%clk 0:02:44]} 16. Rxg7+ {[%clk 0:02:36]}  Kh8 {[%clk 0:02:44]} 17. Bd3 {[%clk 0:02:36]}  f5 {[%clk 0:02:07]} 18. Qg6 {[%clk 0:02:25]} 1-0


[Site "https://www.chess.com"]

[Event "Titled Tuesday Blitz June 21 Late 2022"]
[White "Sarana, Alexey"]
[Black "Zhigalko, Sergei"]
[WhiteFideId "24133795"]
[BlackFideId "13502956"]
[WhiteElo "2666"]
[BlackElo "2662"]
[Result "1-0"]
[Round "06"]
[TimeControl "180+1"]
[Date "2022.06.21"]
[WhiteClock "0:00:05"]
[BlackClock "0:00:01"]

1. d4 {[%clk 0:03:00]}  Nf6 {[%clk 0:02:59]} 2. c4 {[%clk 0:03:01]}  e6 {[%clk 0:02:59]} 3. Nc3 {[%clk 0:03:02]}  Bb4 {[%clk 0:02:59]} 4. e3 {[%clk 0:03:02]}  O-O {[%clk 0:03:00]} 5. Bd3 {[%clk 0:03:03]}  d5 {[%clk 0:03:00]} 6. a3 {[%clk 0:03:03]}  Bxc3+ {[%clk 0:02:51]} 7. bxc3 {[%clk 0:03:04]}  c5 {[%clk 0:02:50]} 8. cxd5 {[%clk 0:03:04]}  exd5 {[%clk 0:02:49]} 9. Ne2 {[%clk 0:03:04]}  Bg4 {[%clk 0:02:46]} 10. f3 {[%clk 0:02:53]}  Bh5 {[%clk 0:02:46]} 11. O-O {[%clk 0:02:53]}  Bg6 {[%clk 0:02:45]} 12. Ng3 {[%clk 0:02:50]}  Nc6 {[%clk 0:02:44]} 13. Bb2 {[%clk 0:02:50]}  Re8 {[%clk 0:02:44]} 14. Re1 {[%clk 0:02:44]}  Rc8 {[%clk 0:02:36]} 15. Qe2 {[%clk 0:02:44]}  Qa5 {[%clk 0:02:03]} 16. Rad1 {[%clk 0:02:41]}  Qa4 {[%clk 0:01:58]} 17. h4 {[%clk 0:02:04]}  a6 {[%clk 0:01:17]} 18. Bxg6 {[%clk 0:01:34]}  hxg6 {[%clk 0:01:16]} 19. e4 {[%clk 0:01:34]}  cxd4 {[%clk 0:01:05]} 20. cxd4 {[%clk 0:01:34]}  Na5 {[%clk 0:01:01]} 21. e5 {[%clk 0:01:33]}  Rc2 {[%clk 0:00:57]} 22. Rd2 {[%clk 0:01:33]}  Rxd2 {[%clk 0:00:56]} 23. Qxd2 {[%clk 0:01:34]}  Nc4 {[%clk 0:00:54]} 24. Qf2 {[%clk 0:01:24]}  Nh5 {[%clk 0:00:48]} 25. Bc1 {[%clk 0:01:05]}  Nxg3 {[%clk 0:00:44]} 26. Qxg3 {[%clk 0:01:05]}  Nxa3 {[%clk 0:00:45]} 27. Bxa3 {[%clk 0:00:43]}  Qxa3 {[%clk 0:00:45]} 28. Qf4 {[%clk 0:00:44]}  Rc8 {[%clk 0:00:16]} 29. Kh2 {[%clk 0:00:43]}  Qe7 {[%clk 0:00:15]} 30. Rb1 {[%clk 0:00:25]}  b5 {[%clk 0:00:15]} 31. Kg3 {[%clk 0:00:25]}  Rc4 {[%clk 0:00:12]} 32. Ra1 {[%clk 0:00:18]}  Qa7 {[%clk 0:00:11]} 33. Qg5 {[%clk 0:00:14]}  Rxd4 {[%clk 0:00:06]} 34. Rc1 {[%clk 0:00:07]}  Rc4 {[%clk 0:00:06]} 35. Rd1 {[%clk 0:00:08]}  Qd7 {[%clk 0:00:05]} 36. h5 {[%clk 0:00:07]}  gxh5 {[%clk 0:00:05]} 37. Qxh5 {[%clk 0:00:08]}  g6 {[%clk 0:00:02]} 38. Qh6 {[%clk 0:00:06]}  Qe7 {[%clk 0:00:02]} 39. f4 {[%clk 0:00:06]}  Rc3+ {[%clk 0:00:02]} 40. Kh2 {[%clk 0:00:06]}  Qf8 {[%clk 0:00:02]} 41. Qh4 {[%clk 0:00:06]}  Rc6 {[%clk 0:00:02]} 42. Rxd5 {[%clk 0:00:05]}  Rc8 {[%clk 0:00:02]} 43. Rd7 {[%clk 0:00:06]}  Qg7 {[%clk 0:00:02]} 44. e6 {[%clk 0:00:05]}  Rf8 {[%clk 0:00:01]} 45. e7 {[%clk 0:00:05]} 1-0


[Site "https://www.chess.com"]

[Event "Titled Tuesday Blitz June 21 Late 2022"]
[White "Shuvalova, Polina"]
[Black "Gallegos Diaz, Carlos Alberto"]
[WhiteFideId "24171760"]
[BlackFideId "3900886"]
[WhiteElo "2330"]
[BlackElo "2362"]
[Result "1-0"]
[Round "06"]
[TimeControl "180+1"]
[Date "2022.06.22"]
[WhiteClock "0:00:04"]
[BlackClock "0:00:01"]

1. e4 {[%clk 0:03:00]}  d6 {[%clk 0:02:58]} 2. d4 {[%clk 0:03:00]}  Nf6 {[%clk 0:02:58]} 3. Nc3 {[%clk 0:03:00]}  c6 {[%clk 0:02:58]} 4. Nf3 {[%clk 0:02:54]}  Qa5 {[%clk 0:02:58]} 5. Bd3 {[%clk 0:02:52]}  e5 {[%clk 0:02:57]} 6. O-O {[%clk 0:02:51]}  Be7 {[%clk 0:02:57]} 7. h3 {[%clk 0:02:50]}  O-O {[%clk 0:02:56]} 8. a4 {[%clk 0:02:50]}  Nbd7 {[%clk 0:02:55]} 9. Bd2 {[%clk 0:02:48]}  Qc7 {[%clk 0:02:54]} 10. Ne2 {[%clk 0:02:40]}  d5 {[%clk 0:02:47]} 11. Nxe5 {[%clk 0:02:36]}  Nxe4 {[%clk 0:02:32]} 12. Bf4 {[%clk 0:02:29]}  Bd6 {[%clk 0:02:31]} 13. Bxe4 {[%clk 0:02:02]}  dxe4 {[%clk 0:02:29]} 14. Nxd7 {[%clk 0:01:57]}  Bxd7 {[%clk 0:02:11]} 15. Qd2 {[%clk 0:01:53]}  Rfe8 {[%clk 0:01:56]} 16. Rfe1 {[%clk 0:01:47]}  Rad8 {[%clk 0:01:54]} 17. Rad1 {[%clk 0:01:45]}  c5 {[%clk 0:01:42]} 18. dxc5 {[%clk 0:01:38]}  Bxf4 {[%clk 0:01:39]} 19. Qxf4 {[%clk 0:01:37]}  Qxc5 {[%clk 0:01:30]} 20. Nc3 {[%clk 0:01:34]}  Bc6 {[%clk 0:01:19]} 21. Rxd8 {[%clk 0:01:22]}  Rxd8 {[%clk 0:01:18]} 22. Nxe4 {[%clk 0:01:17]}  Qxc2 {[%clk 0:01:06]} 23. Qc7 {[%clk 0:00:50]}  Rf8 {[%clk 0:00:59]} 24. Nd6 {[%clk 0:00:27]}  Qxb2 {[%clk 0:00:46]} 25. Nf5 {[%clk 0:00:23]}  Qb4 {[%clk 0:00:33]} 26. Re5 {[%clk 0:00:12]}  h6 {[%clk 0:00:17]} 27. a5 {[%clk 0:00:09]}  Qc3 {[%clk 0:00:11]} 28. Qd6 {[%clk 0:00:08]}  Qc1+ {[%clk 0:00:09]} 29. Kh2 {[%clk 0:00:07]}  Qf4+ {[%clk 0:00:09]} 30. Kg1 {[%clk 0:00:07]}  Qc1+ {[%clk 0:00:07]} 31. Kh2 {[%clk 0:00:07]}  Qf4+ {[%clk 0:00:07]} 32. Ng3 {[%clk 0:00:04]}  Rc8 {[%clk 0:00:04]} 33. Re8+ {[%clk 0:00:03]}  Bxe8 {[%clk 0:00:03]} 34. Qxf4 {[%clk 0:00:04]}  Bc6 {[%clk 0:00:03]} 35. Qg4 {[%clk 0:00:04]}  Re8 {[%clk 0:00:02]} 36. Nf5 {[%clk 0:00:04]}  g6 {[%clk 0:00:01]} 37. Nxh6+ {[%clk 0:00:04]}  Kh7 {[%clk 0:00:01]} 38. Qh4 {[%clk 0:00:04]}  Kg7 {[%clk 0:00:01]} 39. Ng4 {[%clk 0:00:04]} 1-0


[Site "https://www.chess.com"]